Workbook

Sheet Inputs
A1: Finding the Efficient Frontier
A4: Today's date | B4: =TODAY() -> 2024-04-01
A5: Start date | B5: =DATE(YEAR(endDate)-5, MONTH(endDate), 15) -> 2019-03-15
A6: End date | B6: =DATE(YEAR(B4), MONTH(B4)-1, 15) -> 2024-03-15
E11: Risk-free Rate | G11: 0.03
E12: Market Risk Premium (Rm-Rf) | G12: 0.057
B14: Ticker Symbols
B15: 1 | C15: jpm
B16: 2 | C16: xom
B17: 3 | C17: wmt
B18: 4 | C18: nke
B19: 5 | C19: msft
B20: 6 | C20: vz
B21: 7 | C21: amzn
B22: 8 | C22: ko
H25: Enter Value for x
A41: Ignore everything below this point on this worksheet
A47: If selected to be restricted, weights for these individual ETFs must be 0.2 or less
A48: Financial (XLF)
A49: Health (XLV)
A50: Energy (IYE)
A51: Technology (VGT)
A52: Utilities (IDU)
A53: China (FXI)
A54: Japan (NKY)
A55: India (INP)
A56: Latin America (EWZ)
A57: Europe (EWG)
A58: Emerging Markets (VWO)
A59: Junk Bonds (HYG)
A60: Domestic Real Estate (VNQ)
A61: Global Real Estate (IFGL)
A62: Precious Metals (IAU)
A63: Natural Resources (VAW)
A64: Agricultural Commodities (RJA)
... 21 more rows

Sheet Returns
B1: PRICES | K1: RETURNS | T1: Rf | U1: =Inputs!$G$11 -> 0.03
A2: Date | B2: jpm | C2: xom | D2: wmt | E2: nke | F2: msft | G2: vz | H2: amzn | I2: ko | J2: S&P500 | K2: =B2 -> jpm | L2: =C2 -> xom | M2: =D2 -> wmt | N2: nke | O2: msft | P2: vz | Q2: amzn | R2: ko | S2: =J2 -> S&P500 | T2: Rm-Rf | U2: =Inputs!$G$12 -> 0.057
A3: 2018-12-01 | B3: 83.882492 | C3: 52.801025 | D3: 85.255371 | E3: 70.450775 | F3: 96.450569 | G3: 43.663429 | H3: 75.098503 | I3: 40.506672 | J3: 2506.850098 | K3: _1 | L3: _2 | M3: _3 | N3: _4 | O3: _5 | P3: _6 | Q3: _7 | R3: _8
A4: 2019-01-01 | B4: 88.935028 | C4: 56.742313 | D4: 88.186867 | E4: 77.805634 | F4: 99.166428 | G4: 42.762508 | H4: 85.936501 | I4: 41.173943 | J4: 2704.100098 | K4: =LN(B4/B3) -> 0.05848916596 | L4: =LN(C4/C3) -> 0.07198959004 | M4: =LN(D4/D3) -> 0.03380693459 | N4: =LN(E4/E3) -> 0.09929960602 | O4: =LN(F4/F3) -> 0.02776889083 | P4: =LN(G4/G3) -> -0.02084914936 | Q4: =LN(H4/H3) -> 0.1348080379 | R4: =LN(I4/I3) -> 0.01633890353 | S4: =LN(J4/J3) -> 0.07574215198
A5: 2019-02-01 | B5: 90.40226 | C5: 61.194683 | D5: 91.094826 | E5: 81.46405 | F5: 106.383377 | G5: 44.668468 | H5: 81.991501 | I5: 38.787163 | J5: 2784.48999 | K5: =LN(B5/B4) -> 0.01636318642 | L5: 0.07554011322 | M5: 0.03244295622 | N5: 0.04594797362 | O5: 0.07024980391 | P5: 0.04360610144 | Q5: -0.04699306751 | R5: -0.05971626345 | S5: 0.02929555315
A6: 2019-03-01 | B6: 87.69088 | C6: 63.259838 | D6: 89.751266 | E6: 80.019699 | F6: 112.473793 | G6: 46.402775 | H6: 89.037498 | I6: 40.087482 | J6: 2834.399902 | K6: -0.03045136399 | L6: 0.03319035036 | M6: -0.0148588748 | N6: -0.01788897677 | O6: 0.0556709099 | P6: 0.03809142465 | Q6: 0.08244201129 | R6: 0.03297477463 | S6: 0.01776551085
A7: 2019-04-01 | B7: 100.52877 | C7: 62.852707 | D7: 95.14698 | E7: 83.674294 | F7: 124.54702 | G7: 44.880348 | H7: 96.325996 | I7: 42.335922 | J7: 2945.830078 | K7: 0.1366260521 | L7: -0.006456652102 | M7: 0.05838072076 | N7: 0.04465896779 | O7: 0.1019630719 | P7: -0.03335924828 | Q7: 0.07868062361 | R7: 0.05457182953 | S7: 0.0385603975
A8: 2019-05-01 | B8: 92.490593 | C8: 55.407158 | D8: 93.851715 | E8: 73.490097 | F8: 117.947754 | G8: 43.091068 | H8: 88.753502 | I8: 42.39632 | J8: 2752.060059 | K8: -0.08333701314 | L8: -0.1260852137 | M8: -0.01370681717 | N8: -0.1297811472 | O8: -0.05444155158 | P8: -0.04068427854 | Q8: -0.08187534372 | R8: 0.001425620491 | S8: -0.06804089389
A9: 2019-06-01 | B9: 97.588264 | C9: 60.682758 | D9: 102.767754 | E9: 80.200493 | F9: 128.224182 | G9: 45.295177 | H9: 94.681503 | I9: 43.940987 | J9: 2941.76001 | K9: 0.05365029824 | L9: 0.09095081381 | M9: 0.09075559006 | N9: 0.08737899954 | O9: 0.08353839014 | P9: 0.04988482218 | Q9: 0.06465577231 | R9: 0.03578596313 | S9: 0.0666583015
A10: 2019-07-01 | B10: 101.254341 | C10: 58.885159 | D10: 102.665443 | E10: 82.187561 | F10: 130.435303 | G10: 43.820488 | H10: 93.338997 | I10: 45.771152 | J10: 2980.379883 | K10: 0.03687833885 | L10: -0.03007051553 | M10: -0.0009960513681 | N10: 0.02447430259 | O10: 0.01709718754 | P10: -0.03309908826 | Q10: -0.01428066424 | R10: 0.04080649452 | S10: 0.01304272482
A11: 2019-08-01 | B11: 96.573738 | C11: 54.228821 | D11: 106.274277 | E11: 80.725914 | F11: 131.957245 | G11: 46.597172 | H11: 88.814499 | I11: 47.867077 | J11: 2926.459961 | K11: -0.04732873824 | L11: -0.08237656959 | M11: 0.03454769571 | N11: -0.01794432561 | O11: 0.01160062722 | P11: 0.06143838202 | Q11: -0.04968808111 | R11: 0.04477391666 | S11: -0.01825728178
A12: 2019-09-01 | B12: 103.45681 | C12: 56.61079 | D12: 110.928719 | E12: 89.956985 | F12: 133.520248 | G12: 48.359802 | H12: 86.795502 | I12: 47.34528 | J12: 2976.73999 | K12: 0.06884739002 | L12: 0.0429870832 | M12: 0.04286455274 | N12: 0.1082719727 | O12: 0.01177516815 | P12: 0.03712907885 | Q12: -0.02299511365 | R12: -0.01096080888 | S12: 0.01703525049
A13: 2019-10-01 | B13: 109.812408 | C13: 54.173523 | D13: 109.601471 | E13: 85.771378 | F13: 137.688248 | G13: 48.447926 | H13: 88.833 | I13: 47.682674 | J13: 3037.560059 | K13: 0.05961929723 | L13: -0.04400731953 | M13: -0.0120370279 | N13: -0.04764625054 | O13: 0.03073892039 | P13: 0.001820598958 | Q13: 0.02320340254 | R13: 0.007100971946 | S13: 0.02022584237
A14: 2019-11-01 | B14: 116.753044 | C14: 54.622482 | D14: 111.311928 | E14: 89.54512 | F14: 145.380798 | G14: 48.76585 | H14: 90.040001 | I14: 46.780346 | J14: 3140.97998 | K14: 0.06128744086 | L14: 0.008253272691 | M14: 0.01548562639 | N14: 0.04305727123 | O14: 0.05436443596 | P14: 0.006540742403 | Q14: 0.01349582456 | R14: -0.01910494595 | S14: 0.03348026579
A15: 2019-12-01 | B15: 123.522865 | C15: 56.620056 | D15: 111.078262 | E15: 97.288353 | F15: 151.965714 | G15: 49.704899 | H15: 92.391998 | I15: 48.850811 | J15: 3230.780029 | K15: 0.05636531162 | L15: 0.03591771249 | M15: -0.002101406415 | N15: 0.08293664775 | O15: 0.04429843651 | P15: 0.01907322687 | Q15: 0.02578634602 | R15: 0.04330782274 | S15: 0.02818875636
A16: 2020-01-01 | B16: 117.284691 | C16: 50.404663 | D16: 107.492363 | E16: 92.477226 | F16: 164.0401 | G16: 48.118229 | H16: 100.435997 | I16: 51.54269 | J16: 3225.52002 | K16: -0.051822045 | L16: -0.1162795781 | M16: -0.03281521275 | N16: -0.05071687127 | O16: 0.07645598052 | P16: -0.03244241307 | Q16: 0.08348030569 | R16: 0.05363941614 | S16: -0.001629419365
A17: 2020-02-01 | B17: 103.546036 | C17: 41.738827 | D17: 101.098587 | E17: 85.831924 | F17: 156.119003 | G17: 44.300213 | H17: 94.1875 | I17: 47.209221 | J17: 2954.219971 | K17: -0.1245879295 | L17: -0.1886518919 | M17: -0.06132365352 | N17: -0.07457139692 | O17: -0.04949235395 | P17: -0.08267160144 | Q17: -0.06423320247 | R17: -0.08782116265 | S17: -0.08785953695
A18: 2020-03-01 | B18: 80.288071 | C18: 31.25148 | D18: 106.675545 | E18: 79.675972 | F18: 152.390442 | G18: 43.948494 | H18: 97.486 | I18: 39.054176 | J18: 2584.590088 | K18: -0.2543952516 | L18: -0.2893650637 | M18: 0.05369578837 | N18: -0.07442295209 | O18: -0.02417263143 | P18: -0.007971127833 | Q18: 0.03442130156 | R18: -0.1896394233 | S18: -0.1336677247
A19: 2020-04-01 | B19: 85.398064 | C19: 38.247456 | D19: 114.625816 | E19: 83.951546 | F19: 173.165268 | G19: 46.991272 | H19: 123.699997 | I19: 40.856808 | J19: 2912.429932 | K19: 0.06170237625 | L19: 0.2020103132 | M19: 0.07188111138 | N19: 0.05227173929 | O19: 0.1278005201 | P19: 0.06694352501 | Q19: 0.2381504772 | R19: 0.04512365554 | S19: 0.1194208388
A20: 2020-05-01 | B20: 87.682106 | C20: 37.4244 | D20: 116.992828 | E20: 94.929359 | F20: 177.069 | G20: 47.43877 | H20: 122.1185 | I20: 41.560169 | J20: 3044.310059 | K20: 0.02639441132 | L20: -0.02175415014 | M20: 0.02043958436 | N20: 0.1228932264 | O20: 0.02229304228 | P20: 0.009477944528 | Q20: -0.01286737036 | R20: 0.01706876671 | S20: 0.04428653296
A21: 2020-06-01 | B21: 84.753662 | C21: 37.520775 | D21: 113.453537 | E21: 94.654533 | F21: 197.193283 | G21: 45.578598 | H21: 137.940994 | I21: 39.779518 | J21: 3100.290039 | K21: -0.03396888731 | L21: 0.002571881462 | M21: -0.0307192463 | N21: -0.002899256784 | O21: 0.1076448926 | P21: -0.04000156263 | Q21: 0.1218341292 | R21: -0.04379007592 | S21: 0.0182213742
A22: 2020-07-01 | B22: 87.078407 | C22: 35.305775 | D22: 122.565407 | E22: 94.229767 | F22: 198.646729 | G22: 47.521446 | H22: 158.233994 | I22: 42.440842 | J22: 3271.120117 | K22: 0.02705998791 | L22: -0.06084823128 | M22: 0.07725143472 | N22: -0.004497639201 | O22: 0.007343636256 | P22: 0.04174283964 | Q22: 0.1372488981 | R22: 0.06475899661 | S22: 0.0536368016
A23: 2020-08-01 | B23: 91.15686 | C23: 33.510277 | D23: 131.516281 | E23: 108.015244 | F23: 218.529816 | G23: 49.551598 | H23: 172.548004 | I23: 44.498199 | J23: 3500.310059 | K23: 0.04577281618 | L23: -0.05219438039 | M23: 0.07048583165 | N23: 0.1365362358 | O23: 0.09539444691 | P23: 0.04183340662 | Q23: 0.08660056967 | R23: 0.04733756312 | S23: 0.06771908318
A24: 2020-09-01 | B24: 87.590286 | C24: 29.371639 | D24: 133.065109 | E24: 121.461021 | F24: 204.294281 | G24: 49.735527 | H24: 157.436493 | I24: 44.35445 | J24: 3363 | K24: -0.03991165747 | L24: -0.131822619 | M24: 0.01170789595 | N24: 0.1173210312 | O24: -0.06736095461 | P24: 0.0037049962 | Q24: -0.09165332391 | R24: -0.003235674502 | S24: -0.0400181201
A25: 2020-10-01 | B25: 89.200691 | C25: 27.908613 | D25: 131.961853 | E25: 116.178421 | F25: 196.659836 | G25: 47.645447 | H25: 151.807495 | I25: 43.527042 | J25: 3269.959961 | K25: 0.01821868481 | L25: -0.05109419803 | M25: -0.008325661393 | N25: -0.044466275 | O25: -0.03808599286 | P25: -0.04293243206 | Q25: -0.03640891998 | R25: -0.01883064182 | S25: -0.02805569227
A26: 2020-11-01 | B26: 108.247147 | C26: 32.622795 | D26: 145.314972 | E26: 130.323395 | F26: 207.926926 | G26: 51.042412 | H26: 158.401993 | I26: 46.733154 | J26: 3621.629883 | K26: 0.1935282247 | L26: 0.1560759263 | M26: 0.09639071885 | N26: 0.1148918937 | O26: 0.05571118524 | P26: 0.06886982033 | Q26: 0.04252282345 | R26: 0.07107144843 | S26: 0.1021464279
A27: 2020-12-01 | B27: 116.686157 | C27: 36.117348 | D27: 137.097702 | E27: 136.873444 | F27: 216.60289 | G27: 49.639824 | H27: 162.846497 | I27: 50.057003 | J27: 3756.070068 | K27: 0.07507090099 | L27: 0.1017620268 | M27: -0.05820978231 | N27: 0.04903771726 | O27: 0.04087897638 | P27: -0.02786348017 | Q27: 0.02767195953 | R27: 0.0687085675 | S27: 0.03644904769
A28: 2021-01-01 | B28: 118.155411 | C28: 39.289227 | D28: 134.105179 | E28: 129.509491 | F28: 225.893402 | G28: 46.260094 | H28: 160.309998 | I28: 43.950485 | J28: 3714.23999 | K28: 0.01251288844 | L28: 0.08417705523 | M28: -0.02206941497 | N28: -0.05530256444 | O28: 0.04199753839 | P28: -0.07051372601 | Q28: -0.01569859267 | R28: -0.1300987567 | S28: -0.01119913762
A29: 2021-02-01 | B29: 136.116928 | C29: 47.639496 | D29: 124.015533 | E29: 130.663116 | F29: 226.302429 | G29: 47.225006 | H29: 154.6465 | I29: 44.717228 | J29: 3811.149902 | K29: 0.1415134808 | L29: 0.1927118059 | M29: -0.07821758609 | N29: 0.008868209254 | O29: 0.001809070688 | P29: 0.02064385164 | Q29: -0.0359675611 | R29: 0.0172951819 | S29: 0.02575687665
A30: 2021-03-01 | B30: 140.796875 | C30: 49.749523 | D30: 129.656952 | E30: 129.092789 | F30: 230.132568 | G30: 49.658848 | H30: 154.703995 | I30: 48.112778 | J30: 3972.889893 | K30: 0.03380396782 | L30: 0.04333871053 | M30: 0.04448530795 | N30: -0.01209093692 | O30: 0.01678323937 | P30: 0.05025304163 | Q30: 0.0003717142955 | R30: 0.07318895548 | S30: 0.04156280748
A31: 2021-04-01 | B31: 142.25824 | C31: 51.005951 | D31: 134.109116 | E31: 128.830536 | F31: 246.150192 | G31: 49.351418 | H31: 173.371002 | I31: 49.682125 | J31: 4181.169922 | K31: 0.01032574864 | L31: 0.02494143657 | M31: 0.03376163526 | N31: -0.002033574051 | O31: 0.06728636073 | P31: -0.006210083064 | Q31: 0.1139202371 | R31: 0.03209741375 | S31: 0.05109733039
A32: 2021-05-01 | B32: 152.799561 | C32: 52.012878 | D32: 136.14122 | E32: 132.560791 | F32: 243.709946 | G32: 48.760254 | H32: 161.153503 | I32: 50.887821 | J32: 4204.109863 | K32: 0.07148300618 | L32: 0.01954902957 | M32: 0.01503896225 | N32: 0.02854347389 | O32: -0.009963113943 | P32: -0.01205098522 | Q32: -0.07307647299 | R32: 0.02397841138 | S32: 0.00547149262
A33: 2021-06-01 | B33: 144.705566 | C33: 57.028786 | D33: 135.703964 | E33: 150.378448 | F33: 265.033173 | G33: 48.363194 | H33: 172.007996 | I33: 49.801769 | J33: 4297.5 | K33: -0.054425905 | L33: 0.09206481613 | M33: -0.003216951433 | N33: 0.1261137632 | O33: 0.08387622701 | P33: -0.008176443902 | Q33: 0.06518361857 | R33: -0.02157311635 | S33: 0.02197087263
A34: 2021-07-01 | B34: 141.207474 | C34: 52.047348 | D34: 137.17627 | E34: 163.05191 | F34: 278.739777 | G34: 48.1474 | H34: 166.379501 | I34: 52.884785 | J34: 4395.259766 | K34: -0.02447084302 | L34: -0.09140231515 | M34: 0.01079096324 | N34: 0.08091351299 | O34: 0.05042364838 | P34: -0.004471931022 | Q34: -0.03326963441 | R34: 0.06006517386 | S34: 0.02249317601
A35: 2021-08-01 | B35: 149.665878 | C35: 49.289936 | D35: 142.517044 | E35: 160.355667 | F35: 295.342224 | G35: 48.007458 | H35: 173.539505 | I35: 52.217121 | J35: 4522.680176 | K35: 0.0581750739 | L35: -0.05443392048 | M35: 0.03819485842 | N35: -0.01667434941 | O35: 0.05785611766 | P35: -0.002910765025 | Q35: 0.0421339383 | R35: -0.01270524973 | S35: 0.02857814312
A36: 2021-09-01 | B36: 153.165466 | C36: 53.982315 | D36: 134.619339 | E36: 141.598145 | F36: 276.34256 | G36: 47.143322 | H36: 164.251999 | I36: 48.656235 | J36: 4307.540039 | K36: 0.02311348457 | L36: 0.09093657065 | M36: -0.05701051512 | N36: -0.1244011861 | O36: -0.06649350979 | P36: -0.01816400788 | Q36: -0.05500344023 | R36: -0.07063046887 | S36: -0.04873779285
A37: 2021-10-01 | B37: 158.966812 | C37: 59.167633 | D37: 144.316391 | E37: 163.106491 | F37: 325.059235 | G37: 46.253002 | H37: 168.621506 | I37: 52.667278 | J37: 4605.379883 | K37: 0.03717663673 | L37: 0.09171815958 | M37: 0.06955696462 | N37: 0.1414102256 | O37: 0.1623661717 | P37: -0.019065996 | Q37: 0.02625476602 | R37: 0.07921439114 | S37: 0.06685817534
A38: 2021-11-01 | B38: 149.513474 | C38: 54.918427 | D38: 135.82663 | E38: 165.007721 | F38: 324.049652 | G38: 44.399929 | H38: 175.3535 | I38: 49.004765 | J38: 4567 | K38: -0.06130893501 | L38: -0.07452571368 | M38: -0.06062875597 | N38: 0.01158896024 | O38: -0.003110676296 | P38: -0.04088849962 | Q38: 0.03914734269 | R38: -0.07207681361 | S38: -0.008368625696
A39: 2021-12-01 | B39: 149.06163 | C39: 56.912109 | D39: 139.747955 | E39: 162.502014 | F39: 330.26944 | G39: 45.892582 | H39: 166.716995 | I39: 55.749729 | J39: 4766.180176 | K39: -0.003026671272 | L39: 0.03565919161 | M39: 0.02846118555 | N39: -0.01530187121 | O39: 0.0190120552 | P39: 0.03306562147 | Q39: -0.0505062023 | R39: 0.1289550111 | S39: 0.04268864821
A40: 2022-01-01 | B40: 139.88356 | C40: 70.649521 | D40: 135.578369 | E40: 144.626617 | F40: 305.385315 | G40: 47.014282 | H40: 149.573502 | I40: 57.44453 | J40: 4515.549805 | K40: -0.06354948233 | L40: 0.2162231988 | M40: -0.03029063652 | N40: -0.1165350294 | O40: -0.07833449902 | P40: 0.02414793609 | Q40: -0.10850981 | R40: 0.02994723719 | S40: -0.05401822998
A41: 2022-02-01 | B41: 134.282516 | C41: 72.937538 | D41: 131.069122 | E41: 133.374512 | F41: 293.414612 | G41: 47.974018 | H41: 153.563004 | I41: 58.602657 | J41: 4373.939941 | K41: -0.04086445335 | L41: 0.03187210183 | M41: -0.03382500923 | N41: -0.08099431533 | O41: -0.03998764036 | P41: 0.0202081448 | Q41: 0.02632300814 | R41: 0.01996025032 | S41: -0.03186276118
A42: 2022-03-01 | B42: 129.093048 | C42: 77.667572 | D42: 144.412598 | E42: 131.430786 | F42: 303.389343 | G42: 45.533756 | H42: 162.997498 | I42: 58.376675 | J42: 4530.410156 | K42: -0.03941246223 | L42: 0.06283439044 | M42: 0.09694963352 | N42: -0.01468067991 | O42: 0.03343027426 | P42: -0.05220563169 | Q42: 0.05962391867 | R42: -0.003863627484 | S42: 0.03514828631
A43: 2022-04-01 | B43: 113.032166 | C43: 80.169044 | D43: 148.933258 | E43: 122.078011 | F43: 273.090729 | G43: 41.3862 | H43: 124.281502 | I43: 61.29982 | J43: 4131.930176 | K43: -0.1328610136 | L43: 0.03169963384 | M43: 0.03082380629 | N43: -0.07382009604 | O43: -0.1052128604 | P43: -0.09550644907 | Q43: -0.2711856809 | R43: 0.04886049719 | S43: -0.0920678248
A44: 2022-05-01 | B44: 126.148048 | C44: 90.278336 | D44: 125.21917 | E44: 116.351028 | F44: 267.530945 | G44: 46.404861 | H44: 120.209503 | I44: 60.132835 | J44: 4132.149902 | K44: 0.1097837683 | L44: 0.1187600649 | M44: -0.1734327107 | N44: -0.04804854969 | O44: -0.02056883874 | P44: 0.1144567247 | Q44: -0.03331309119 | R44: -0.01922087477 | S44: 5.317615463e-05
A45: 2022-06-01 | B45: 107.430466 | C45: 81.360748 | D45: 118.786331 | E45: 100.051109 | F45: 253.319626 | G45: 45.91629 | H45: 106.209999 | I45: 59.686916 | J45: 3785.379883 | K45: -0.1606123909 | L45: -0.1040045748 | M45: -0.05273922057 | N45: -0.1509305797 | O45: -0.05458320663 | P45: -0.01058426061 | Q45: -0.123817822 | R45: -0.007443197886 | S45: -0.08765158167
A46: 2022-07-01 | B46: 110.053986 | C46: 92.086617 | D46: 129.015762 | E46: 112.782387 | F46: 276.902771 | G46: 41.790611 | H46: 134.949997 | I46: 61.322231 | J46: 4130.290039 | K46: 0.02412721684 | L46: 0.1238366779 | M46: 0.08260824156 | N46: 0.1197790378 | O46: 0.0890144021 | P46: -0.09414825899 | Q46: 0.2394860603 | R46: 0.02702960235 | S46: 0.08720138463
A47: 2022-08-01 | B47: 109.458702 | C47: 90.81356 | D47: 129.504272 | E47: 104.469933 | F47: 257.896179 | G47: 38.303703 | H47: 126.769997 | I47: 58.971405 | J47: 3955 | K47: -0.005423699784 | L47: -0.01392100959 | M47: 0.003779286068 | N47: -0.07656087574 | O47: -0.07110934039 | P47: -0.08712512149 | Q47: -0.06252991995 | R47: -0.03908977085 | S47: -0.04336703065
A48: 2022-09-01 | B48: 100.57534 | C48: 83.753235 | D48: 127.271637 | E48: 81.573898 | F48: 230.204285 | G48: 34.785736 | H48: 113 | I48: 53.533916 | J48: 3585.620117 | K48: -0.08464022904 | L48: -0.08093381684 | M48: -0.01739019267 | N48: -0.2473899742 | O48: -0.1135899866 | P48: -0.09633915789 | Q48: -0.1149865786 | R48: -0.09673726843 | S48: -0.09804916667
A49: 2022-10-01 | B49: 121.15239 | C49: 106.295914 | D49: 139.665176 | E49: 91.217339 | F49: 229.443192 | G49: 34.236053 | H49: 102.440002 | I49: 57.610939 | J49: 3871.97998 | K49: 0.1861420763 | L49: 0.2383520494 | M49: 0.09292428183 | N49: 0.1117356663 | O49: -0.003311640915 | P49: -0.0159281476 | Q49: -0.09811053786 | R49: 0.0733970659 | S49: 0.0768345644
A50: 2022-11-01 | B50: 134.180283 | C50: 106.804321 | D50: 149.566269 | E50: 107.958878 | F50: 252.186874 | G50: 36.312874 | H50: 96.540001 | I50: 61.23027 | J50: 4080.110107 | K50: 0.1021351166 | L50: 0.004771538282 | M50: 0.06849160735 | N50: 0.1685053957 | O50: 0.09451490673 | P50: 0.05889306395 | Q50: -0.05931984026 | R50: 0.06092921222 | S50: 0.05235797612
A51: 2022-12-01 | B51: 130.218399 | C51: 106.658455 | D51: 139.135284 | E51: 115.163361 | F51: 237.712234 | G51: 36.704132 | H51: 84 | I51: 61.664528 | J51: 3839.5 | K51: -0.02997125808 | L51: -0.001366664722 | M51: -0.07229283952 | N51: 0.06460125544 | O51: -0.0591095349 | P51: 0.01071700324 | Q51: -0.1391406417 | R51: 0.007067179644 | S51: -0.06078182527
A52: 2023-01-01 | B52: 135.908783 | C52: 112.179947 | D52: 141.708542 | E52: 125.705154 | F52: 245.632004 | G52: 38.725658 | H52: 103.129997 | I52: 59.444565 | J52: 4076.600098 | K52: 0.04277091432 | L52: 0.05047253184 | M52: 0.01832570116 | N52: 0.08758746634 | O52: 0.03277365595 | P52: 0.05361304049 | Q52: 0.2051735004 | R52: -0.03666465713 | S52: 0.05992118192
A53: 2023-02-01 | B53: 140.228867 | C53: 106.281342 | D53: 139.99469 | E53: 117.274124 | F53: 247.227844 | G53: 36.722885 | H53: 94.230003 | I53: 57.689922 | J53: 3970.149902 | K53: 0.03129190465 | L53: -0.05401450379 | M53: -0.01216793385 | N53: -0.06942498258 | O53: 0.006475859551 | P53: -0.05310224756 | Q53: -0.09025166518 | R53: -0.02996170138 | S53: -0.02645947903
A54: 2023-03-01 | B54: 127.472778 | C54: 106.85556 | D54: 145.234772 | E54: 121.074997 | F54: 286.481903 | G54: 36.798584 | H54: 103.290001 | I54: 60.132851 | J54: 4109.310059 | K54: -0.0953730162 | L54: 0.00538826814 | M54: 0.03674705699 | N54: 0.03189602895 | O54: 0.1473650116 | P54: 0.00205923597 | Q54: 0.09180194164 | R54: 0.04147380165 | S54: 0.03445129288
A55: 2023-04-01 | B55: 135.230148 | C55: 115.31356 | D55: 149.311371 | E55: 125.459648 | F55: 305.322357 | G55: 36.74181 | H55: 105.449997 | I55: 62.665024 | J55: 4169.47998 | K55: 0.059075291 | L55: 0.07617701063 | M55: 0.02768231343 | N55: 0.03557401348 | O55: 0.0636927583 | P55: -0.001544022494 | Q55: 0.02069630278 | R55: 0.04124716319 | S55: 0.01453617744
A56: 2023-05-01 | B56: 133.797104 | C56: 99.566849 | D56: 145.256409 | E56: 104.213089 | F56: 326.319061 | G56: 34.271854 | H56: 120.580002 | I56: 58.278961 | J56: 4179.830078 | K56: -0.0106536237 | L56: -0.1468257588 | M56: -0.02753334505 | N56: -0.1855464414 | O56: 0.06650749079 | P56: -0.06959090946 | Q56: 0.1340765712 | R56: -0.07256230761 | S56: 0.002479271516
A57: 2023-06-01 | B57: 143.389938 | C57: 105.41404 | D57: 156.04364 | E57: 109.272263 | F57: 339.132202 | G57: 35.772388 | H57: 130.360001 | I57: 58.826 | J57: 4450.379883 | K57: 0.06924325512 | L57: 0.05706656625 | M57: 0.07163519304 | N57: 0.0474048579 | O57: 0.0385143903 | P57: 0.04285187668 | Q57: 0.07798641199 | R57: 0.009342780604 | S57: 0.06271886499
A58: 2023-07-01 | B58: 155.733475 | C58: 105.404198 | D58: 158.704285 | E58: 109.651817 | F58: 334.531311 | G58: 32.780937 | H58: 133.679993 | I58: 60.95715 | J58: 4588.959961 | K58: 0.08257829418 | L58: -9.336953103e-05 | M58: 0.01690691608 | N58: 0.003467452098 | O58: -0.01365952719 | P58: -0.08732915349 | Q58: 0.02514897028 | R58: 0.03558722427 | S58: 0.03066395088
A59: 2023-08-01 | B59: 145.258163 | C59: 109.286591 | D59: 161.434402 | E59: 101.029861 | F59: 326.40506 | G59: 34.248959 | H59: 138.009995 | I59: 58.890141 | J59: 4507.660156 | K59: -0.06963345871 | L59: 0.03617124243 | M59: 0.01705625278 | N59: -0.08189391902 | O59: -0.02459135515 | P59: 0.04380901268 | Q59: 0.03187727815 | R59: -0.03449746707 | S59: -0.01787520391
A60: 2023-09-01 | B60: 143.957764 | C60: 116.514557 | D60: 159.338196 | E60: 94.980591 | F60: 315.110443 | G60: 31.73267 | H60: 127.120003 | I60: 55.10062 | J60: 4288.049805 | K60: -0.008992642811 | L60: 0.06404251103 | M60: -0.0130699184 | N60: -0.06174356115 | O60: -0.03521593535 | P60: -0.07630942054 | Q60: -0.08219456424 | R60: -0.06651272288 | S60: -0.04994616779
A61: 2023-10-01 | B61: 138.041412 | C61: 104.890846 | D61: 162.805328 | E61: 102.425163 | F61: 337.42514 | G61: 34.395824 | H61: 133.089996 | I61: 56.043747 | J61: 4193.799805 | K61: -0.0419662239 | L61: -0.1050959705 | M61: 0.02152621812 | N61: 0.07545984938 | O61: 0.06842048823 | P61: 0.08058841211 | Q61: 0.04589401522 | R61: 0.01697161382 | S61: -0.022224841
A62: 2023-11-01 | B62: 156.080002 | C62: 101.809021 | D62: 155.113907 | E62: 109.900002 | F62: 378.142517 | G62: 38.330002 | H62: 146.089996 | I62: 57.97834 | J62: 4567.799805 | K62: 0.122814982 | L62: -0.02982153241 | M62: -0.04839544941 | N62: 0.07043846477 | O62: 0.1139274754 | P62: 0.1082977699 | Q62: 0.09319728172 | R62: 0.03393691033 | S62: 0.08542444819
A63: 2023-12-01 | B63: 166.550003 | C63: 101.269997 | D63: 153.141235 | E63: 121.022552 | F63: 370.619995 | G63: 37.299999 | H63: 152.119995 | I63: 57.610001 | J63: 4698.350098 | K63: =LN(B63/B62) -> 0.06492687352 | L63: =LN(C63/C62) -> -0.005308527401 | M63: -0.01279913073 | N63: 0.09640602879 | O63: -0.02009388822 | P63: -0.02723963173 | Q63: 0.04044680743 | R63: -0.006373311419 | S63: 0.02817975824
A65: Monthly Standard Deviation | K65: =STDEV(K4:K63) -> 0.08123168263 | L65: =STDEV(L4:L63) -> 0.09894997899 | M65: 0.05163510711 | N65: 0.08839576388 | O65: 0.06214772238 | P65: 0.05113598966 | Q65: 0.09342335078 | R65: 0.05619858251 | S65: 0.05339391224
A66: Annualized Standard Deviation | K66: =K65*SQRT(12) -> 0.281394803 | L66: =L65*SQRT(12) -> 0.342772782 | M66: 0.1788692579 | N66: 0.3062119084 | O66: 0.2152860255 | P66: 0.1771402644 | Q66: 0.3236279803 | R66: 0.1946776004 | S66: 0.1849619376
A67: Correlation with S&P | K67: =CORREL(K4:K63,$S$4:$S$63) -> 0.7445474952 | L67: =CORREL(L4:L63,$S$4:$S$63) -> 0.5267599968 | M67: 0.4778096154 | N67: 0.6965026192 | O67: 0.7460974179 | P67: 0.4055887677 | Q67: 0.652272435 | R67: 0.5797365986 | S67: 1
A68: Beta | K68: =K67*(K66/$S$66) -> 1.132729244 | L68: =L67*(L66/$S$66) -> 0.976195383 | M68: 0.4620704802 | N68: 1.15308803 | O68: 0.8684183879 | P68: 0.3884372237 | Q68: 1.141281355 | R68: 0.6101889467 | S68: 1
A69: Expected Return from CAPM | K69: =$U$1+K68*$U$2 -> 0.09456556689 | L69: =$U$1+L68*$U$2 -> 0.08564313683 | M69: 0.05633801737 | N69: 0.09572601769 | O69: 0.07949984811 | P69: 0.05214092175 | Q69: 0.09505303722 | R69: 0.06478076996 | S69: =$U$1+S68*$U$2 -> 0.087

Sheet Correlation Matrix
C1: Correlation Matrix
C2: =Returns!K3 -> _1 | D2: =Returns!L3 -> _2 | E2: =Returns!M3 -> _3 | F2: =Returns!N3 -> _4 | G2: =Returns!O3 -> _5 | H2: =Returns!P3 -> _6 | I2: =Returns!Q3 -> _7 | J2: =Returns!R3 -> _8
C3: =Returns!B2 -> jpm | D3: =Returns!C2 -> xom | E3: =Returns!D2 -> wmt | F3: =Returns!E2 -> nke | G3: =Returns!F2 -> msft | H3: =Returns!G2 -> vz | I3: =Returns!H2 -> amzn | J3: =Returns!I2 -> ko | M3: Stand Dev | N3: Expect Ret
A4: =C2 -> _1 | B4: =C3 -> jpm | C4: =CORREL(INDIRECT(C$2),INDIRECT($A4)) -> 1 | D4: 0.5815802277 | E4: 0.1701271368 | F4: 0.5165028606 | G4: 0.3593419007 | H4: 0.3166069429 | I4: 0.2278393635 | J4: 0.4568518739 | L4: =B4 -> jpm | M4: =Returns!K66 -> 0.281394803 | N4: =Returns!K69 -> 0.09456556689
A5: =D2 -> _2 | B5: =D3 -> xom | C5: 0.5815802277 | D5: 1 | E5: 0.1318646176 | F5: 0.3089286865 | G5: 0.1810316568 | H5: 0.2158801153 | I5: 0.09663178392 | J5: 0.373557944 | L5: =B5 -> xom | M5: =Returns!L66 -> 0.342772782 | N5: =Returns!L69 -> 0.08564313683
A6: =E2 -> _3 | B6: =E3 -> wmt | C6: 0.1701271368 | D6: 0.1318646176 | E6: 1 | F6: 0.4478645053 | G6: 0.3939775904 | H6: 0.06775902108 | I6: 0.3009123886 | J6: 0.3365505054 | L6: wmt | M6: =Returns!M66 -> 0.1788692579 | N6: =Returns!M69 -> 0.05633801737
A7: =F2 -> _4 | B7: =F3 -> nke | C7: 0.5165028606 | D7: 0.3089286865 | E7: 0.4478645053 | F7: 1 | G7: 0.5691033405 | H7: 0.3879180979 | I7: 0.3275999734 | J7: 0.4687502034 | L7: nke | M7: =Returns!N66 -> 0.3062119084 | N7: =Returns!N69 -> 0.09572601769
A8: =G2 -> _5 | B8: =G3 -> msft | C8: 0.3593419007 | D8: 0.1810316568 | E8: 0.3939775904 | F8: 0.5691033405 | G8: 1 | H8: 0.3222833613 | I8: 0.6902283844 | J8: 0.3438047569 | L8: msft | M8: =Returns!O66 -> 0.2152860255 | N8: =Returns!O69 -> 0.07949984811
A9: =H2 -> _6 | B9: =H3 -> vz | C9: 0.3166069429 | D9: 0.2158801153 | E9: 0.06775902108 | F9: 0.3879180979 | G9: 0.3222833613 | H9: 1 | I9: 0.2178918346 | J9: 0.3474516354 | L9: vz | M9: =Returns!P66 -> 0.1771402644 | N9: =Returns!P69 -> 0.05214092175
A10: =I2 -> _7 | B10: =I3 -> amzn | C10: 0.2278393635 | D10: 0.09663178392 | E10: 0.3009123886 | F10: 0.3275999734 | G10: 0.6902283844 | H10: 0.2178918346 | I10: 1 | J10: 0.08279919307 | L10: amzn | M10: =Returns!Q66 -> 0.3236279803 | N10: =Returns!Q69 -> 0.09505303722
A11: =J2 -> _8 | B11: =J3 -> ko | C11: 0.4568518739 | D11: 0.373557944 | E11: 0.3365505054 | F11: 0.4687502034 | G11: 0.3438047569 | H11: 0.3474516354 | I11: 0.08279919307 | J11: 1 | L11: ko | M11: =Returns!R66 -> 0.1946776004 | N11: =Returns!R69 -> 0.06478076996

Sheet Covar Matrix
D1: Var/Cov Matrix
C2: ='Correlation Matrix'!C3 -> jpm | D2: ='Correlation Matrix'!D3 -> xom | E2: ='Correlation Matrix'!E3 -> wmt | F2: ='Correlation Matrix'!F3 -> nke | G2: ='Correlation Matrix'!G3 -> msft | H2: ='Correlation Matrix'!H3 -> vz | I2: ='Correlation Matrix'!I3 -> amzn | J2: ='Correlation Matrix'!J3 -> ko
B3: =C2 -> jpm | C3: ='Correlation Matrix'!C4*'Correlation Matrix'!$M$4*'Correlation Matrix'!M4 -> 0.07918303515 | D3: ='Correlation Matrix'!D4*'Correlation Matrix'!$M$5*'Correlation Matrix'!M4 -> 0.05609601813 | E3: ='Correlation Matrix'!E4*'Correlation Matrix'!$M$6*'Correlation Matrix'!M4 -> 0.008562988696 | F3: ='Correlation Matrix'!F4*'Correlation Matrix'!$M$7*'Correlation Matrix'!M4 -> 0.04450521256 | G3: ='Correlation Matrix'!G4*'Correlation Matrix'!$M$8*'Correlation Matrix'!M4 -> 0.02176906485 | H3: ='Correlation Matrix'!H4*'Correlation Matrix'!$M$9*'Correlation Matrix'!M4 -> 0.01578170042 | I3: ='Correlation Matrix'!I4*'Correlation Matrix'!$M$10*'Correlation Matrix'!M4 -> 0.02074870012 | J3: ='Correlation Matrix'!J4*'Correlation Matrix'!$M$11*'Correlation Matrix'!M4 -> 0.02502692358
B4: =D2 -> xom | C4: ='Correlation Matrix'!C5*'Correlation Matrix'!$M$4*'Correlation Matrix'!M5 -> 0.05609601813 | D4: ='Correlation Matrix'!D5*'Correlation Matrix'!$M$5*'Correlation Matrix'!M5 -> 0.1174931801 | E4: ='Correlation Matrix'!E5*'Correlation Matrix'!$M$6*'Correlation Matrix'!M5 -> 0.008084819237 | F4: ='Correlation Matrix'!F5*'Correlation Matrix'!$M$7*'Correlation Matrix'!M5 -> 0.03242549715 | G4: ='Correlation Matrix'!G5*'Correlation Matrix'!$M$8*'Correlation Matrix'!M5 -> 0.01335908446 | H4: ='Correlation Matrix'!H5*'Correlation Matrix'!$M$9*'Correlation Matrix'!M5 -> 0.01310799476 | I4: ='Correlation Matrix'!I5*'Correlation Matrix'!$M$10*'Correlation Matrix'!M5 -> 0.0107194472 | J4: ='Correlation Matrix'!J5*'Correlation Matrix'!$M$11*'Correlation Matrix'!M5 -> 0.02492758985
B5: =E2 -> wmt | C5: ='Correlation Matrix'!C6*'Correlation Matrix'!$M$4*'Correlation Matrix'!M6 -> 0.008562988696 | D5: ='Correlation Matrix'!D6*'Correlation Matrix'!$M$5*'Correlation Matrix'!M6 -> 0.008084819237 | E5: ='Correlation Matrix'!E6*'Correlation Matrix'!$M$6*'Correlation Matrix'!M6 -> 0.03199421144 | F5: ='Correlation Matrix'!F6*'Correlation Matrix'!$M$7*'Correlation Matrix'!M6 -> 0.02453038848 | G5: ='Correlation Matrix'!G6*'Correlation Matrix'!$M$8*'Correlation Matrix'!M6 -> 0.01517130939 | H5: ='Correlation Matrix'!H6*'Correlation Matrix'!$M$9*'Correlation Matrix'!M6 -> 0.002146941035 | I5: ='Correlation Matrix'!I6*'Correlation Matrix'!$M$10*'Correlation Matrix'!M6 -> 0.01741894454 | J5: ='Correlation Matrix'!J6*'Correlation Matrix'!$M$11*'Correlation Matrix'!M6 -> 0.01171930715
B6: =F2 -> nke | C6: ='Correlation Matrix'!C7*'Correlation Matrix'!$M$4*'Correlation Matrix'!M7 -> 0.04450521256 | D6: ='Correlation Matrix'!D7*'Correlation Matrix'!$M$5*'Correlation Matrix'!M7 -> 0.03242549715 | E6: ='Correlation Matrix'!E7*'Correlation Matrix'!$M$6*'Correlation Matrix'!M7 -> 0.02453038848 | F6: ='Correlation Matrix'!F7*'Correlation Matrix'!$M$7*'Correlation Matrix'!M7 -> 0.09376573287 | G6: ='Correlation Matrix'!G7*'Correlation Matrix'!$M$8*'Correlation Matrix'!M7 -> 0.03751708188 | H6: ='Correlation Matrix'!H7*'Correlation Matrix'!$M$9*'Correlation Matrix'!M7 -> 0.02104163129 | I6: ='Correlation Matrix'!I7*'Correlation Matrix'!$M$10*'Correlation Matrix'!M7 -> 0.03246474507 | J6: ='Correlation Matrix'!J7*'Correlation Matrix'!$M$11*'Correlation Matrix'!M7 -> 0.02794341817
B7: =G2 -> msft | C7: ='Correlation Matrix'!C8*'Correlation Matrix'!$M$4*'Correlation Matrix'!M8 -> 0.02176906485 | D7: ='Correlation Matrix'!D8*'Correlation Matrix'!$M$5*'Correlation Matrix'!M8 -> 0.01335908446 | E7: ='Correlation Matrix'!E8*'Correlation Matrix'!$M$6*'Correlation Matrix'!M8 -> 0.01517130939 | F7: ='Correlation Matrix'!F8*'Correlation Matrix'!$M$7*'Correlation Matrix'!M8 -> 0.03751708188 | G7: ='Correlation Matrix'!G8*'Correlation Matrix'!$M$8*'Correlation Matrix'!M8 -> 0.04634807277 | H7: ='Correlation Matrix'!H8*'Correlation Matrix'!$M$9*'Correlation Matrix'!M8 -> 0.01229054138 | I7: ='Correlation Matrix'!I8*'Correlation Matrix'!$M$10*'Correlation Matrix'!M8 -> 0.04808999345 | J7: ='Correlation Matrix'!J8*'Correlation Matrix'!$M$11*'Correlation Matrix'!M8 -> 0.01440932729
B8: =H2 -> vz | C8: ='Correlation Matrix'!C9*'Correlation Matrix'!$M$4*'Correlation Matrix'!M9 -> 0.01578170042 | D8: ='Correlation Matrix'!D9*'Correlation Matrix'!$M$5*'Correlation Matrix'!M9 -> 0.01310799476 | E8: ='Correlation Matrix'!E9*'Correlation Matrix'!$M$6*'Correlation Matrix'!M9 -> 0.002146941035 | F8: ='Correlation Matrix'!F9*'Correlation Matrix'!$M$7*'Correlation Matrix'!M9 -> 0.02104163129 | G8: ='Correlation Matrix'!G9*'Correlation Matrix'!$M$8*'Correlation Matrix'!M9 -> 0.01229054138 | H8: ='Correlation Matrix'!H9*'Correlation Matrix'!$M$9*'Correlation Matrix'!M9 -> 0.03137867326 | I8: ='Correlation Matrix'!I9*'Correlation Matrix'!$M$10*'Correlation Matrix'!M9 -> 0.01249120417 | J8: ='Correlation Matrix'!J9*'Correlation Matrix'!$M$11*'Correlation Matrix'!M9 -> 0.01198195359
B9: =I2 -> amzn | C9: ='Correlation Matrix'!C10*'Correlation Matrix'!$M$4*'Correlation Matrix'!M10 -> 0.02074870012 | D9: ='Correlation Matrix'!D10*'Correlation Matrix'!$M$5*'Correlation Matrix'!M10 -> 0.0107194472 | E9: ='Correlation Matrix'!E10*'Correlation Matrix'!$M$6*'Correlation Matrix'!M10 -> 0.01741894454 | F9: ='Correlation Matrix'!F10*'Correlation Matrix'!$M$7*'Correlation Matrix'!M10 -> 0.03246474507 | G9: ='Correlation Matrix'!G10*'Correlation Matrix'!$M$8*'Correlation Matrix'!M10 -> 0.04808999345 | H9: ='Correlation Matrix'!H10*'Correlation Matrix'!$M$9*'Correlation Matrix'!M10 -> 0.01249120417 | I9: ='Correlation Matrix'!I10*'Correlation Matrix'!$M$10*'Correlation Matrix'!M10 -> 0.1047350697 | J9: ='Correlation Matrix'!J10*'Correlation Matrix'!$M$11*'Correlation Matrix'!M10 -> 0.005216607385
B10: =J2 -> ko | C10: ='Correlation Matrix'!C11*'Correlation Matrix'!$M$4*'Correlation Matrix'!M11 -> 0.02502692358 | D10: ='Correlation Matrix'!D11*'Correlation Matrix'!$M$5*'Correlation Matrix'!M11 -> 0.02492758985 | E10: ='Correlation Matrix'!E11*'Correlation Matrix'!$M$6*'Correlation Matrix'!M11 -> 0.01171930715 | F10: ='Correlation Matrix'!F11*'Correlation Matrix'!$M$7*'Correlation Matrix'!M11 -> 0.02794341817 | G10: ='Correlation Matrix'!G11*'Correlation Matrix'!$M$8*'Correlation Matrix'!M11 -> 0.01440932729 | H10: ='Correlation Matrix'!H11*'Correlation Matrix'!$M$9*'Correlation Matrix'!M11 -> 0.01198195359 | I10: ='Correlation Matrix'!I11*'Correlation Matrix'!$M$10*'Correlation Matrix'!M11 -> 0.005216607385 | J10: ='Correlation Matrix'!J11*'Correlation Matrix'!$M$11*'Correlation Matrix'!M11 -> 0.03789936811
D12: Weighted Var/Cov Matrix
C13: =C2 -> jpm | D13: =D2 -> xom | E13: wmt | F13: nke | G13: msft | H13: vz | I13: amzn | J13: ko
B14: Weights | C14: =B15 -> 0.05616452582 | D14: =B16 -> 0.02435103985 | E14: =B17 -> 0.4210691919 | F14: =B18 -> -0.1795760857 | G14: =B19 -> 0.1434827377 | H14: =B20 -> 0.4011353565 | I14: =B21 -> -0.0127050576 | J14: =B22 -> 0.1460783117
A15: =B3 -> jpm | B15: 0.05616452582 | C15: =C3*$B$15*C14 -> 0.0002497792388 | D15: =D3*B15*$D$14 -> 7.672053855e-05 | E15: =E3*B15*$E$14 -> 0.000202507417 | F15: =F3*B15*$F$14 -> -0.0004488709267 | G15: =G3*B15*$G$14 -> 0.0001754290552 | H15: =H3*B15*$H$14 -> 0.0003555550363 | I15: =I3*B15*$I$14 -> -1.48057233e-05 | J15: =J3*B15*$J$14 -> 0.0002053313701
A16: =B4 -> xom | B16: 0.02435103985 | C16: =C4*B16*$C$14 -> 7.672053855e-05 | D16: 6.967030015e-05 | E16: 8.289747311e-05 | F16: -0.0001417923028 | G16: 4.667602477e-05 | H16: 0.0001280397194 | I16: -3.316397195e-06 | J16: 8.867139537e-05
A17: wmt | B17: 0.4210691919 | C17: =C5*B17*$C$14 -> 0.000202507417 | D17: 8.289747311e-05 | E17: 0.005672550153 | F17: -0.001854839747 | G17: 0.0009165922622 | H17: 0.0003626306652 | I17: -9.318627283e-05 | J17: 0.0007208437623
A18: nke | B18: -0.1795760857 | C18: -0.0004488709267 | D18: -0.0001417923028 | E18: -0.001854839747 | F18: 0.003023717087 | G18: -0.0009666676983 | H18: -0.001515719542 | I18: 7.406911168e-05 | J18: -0.0007330165358
A19: msft | B19: 0.1434827377 | C19: 0.0001754290552 | D19: 4.667602477e-05 | E19: 0.0009165922622 | F19: -0.0009666676983 | G19: 0.0009541814944 | H19: 0.0007073943891 | I19: -8.766596363e-05 | J19: 0.0003020154091
A20: vz | B20: 0.4011353565 | C20: 0.0003555550363 | D20: 0.0001280397194 | E20: 0.0003626306652 | F20: -0.001515719542 | G20: 0.0007073943891 | H20: 0.005049128956 | I20: -6.366077016e-05 | J20: 0.0007021086396
A21: amzn | B21: -0.0127050576 | C21: -1.48057233e-05 | D21: -3.316397195e-06 | E21: -9.318627283e-05 | F21: 7.406911168e-05 | G21: -8.766596363e-05 | H21: -6.366077016e-05 | I21: 1.690617665e-05 | J21: -9.681675697e-06
A22: ko | B22: 0.1460783117 | C22: 0.0002053313701 | D22: 8.867139537e-05 | E22: 0.0007208437623 | F22: -0.0007330165358 | G22: 0.0003020154091 | H22: 0.0007021086396 | I22: -9.681675697e-06 | J22: 0.0008087298089
A23: Sum | B23: =SUM(B15:B22) -> 1.00000002
A25: Port. Var | B25: =SUM(C15:J22) -> 0.01427318064
A26: Port. S.D. | B26: =SQRT(B25) -> 0.1194704174
A27: Port. E(R.) | B27: =SUMPRODUCT('Correlation Matrix'!N4:N11,B15:B22) -> 0.05450666384
A29: Sharpe | B29: =(B27-Returns!U1)/'Covar Matrix'!B26 -> 0.2051274648
... 20 more rows

Sheet Efficient Frontier
D1: Efficient Frontier
A2: Expect. Ret. | B2: Stand. Dev. | C2: ='Covar Matrix'!C13 -> jpm | D2: ='Covar Matrix'!D13 -> xom | E2: ='Covar Matrix'!E13 -> wmt | F2: ='Covar Matrix'!F13 -> nke | G2: ='Covar Matrix'!G13 -> msft | H2: ='Covar Matrix'!H13 -> vz | I2: ='Covar Matrix'!I13 -> amzn | J2: ='Covar Matrix'!J13 -> ko
A3: 0.01999999551 | B3: 0.1988453199 | C3: -0.1622456812 | D3: -0.03118748622 | E3: 0.8085810092 | F3: -0.4899413093 | G3: 0.1363082322 | H3: 0.8847344454 | I3: -0.2686648067 | J3: 0.1224155966
A4: 0.02999999616 | B4: 0.1643688643 | C4: -0.09895068804 | D4: -0.01509245355 | E4: 0.6962800626 | F4: -0.3999976751 | G4: 0.1383873417 | H4: 0.7445880277 | I4: -0.1944879217 | J4: 0.1292733064
A5: 0.03999999668 | B5: 0.1368893221 | C5: -0.0356548333 | D5: 0.001001787675 | E5: 0.583980045 | F5: -0.3100535465 | G5: 0.14046626 | H5: 0.6044415068 | I5: -0.1203115399 | J5: 0.1361303203
A6: 0.04999999733 | B6: 0.1212606692 | C6: 0.02763965948 | D6: 0.01709747958 | E6: 0.4716794077 | F6: -0.2201106535 | G6: 0.142545626 | H6: 0.4642947576 | I6: -0.0461340361 | J6: 0.1429877593
A7: 0.05999999814 | B7: 0.1221208989 | C7: 0.09093466639 | D7: 0.03319267093 | E7: 0.3593786977 | F7: -0.130167305 | G7: 0.1446249359 | H7: 0.3241480455 | I7: 0.02804286863 | J7: 0.1498454199
A8: 0.0699999987 | B8: 0.1391645736 | C8: 0.154229866 | D8: 0.04928748388 | E8: 0.247077995 | F8: -0.04022357301 | G8: 0.1467041311 | H8: 0.1840016189 | I8: 0.1022196218 | J8: 0.1567028563
A9: 0.08000007726 | B9: 0.1675232164 | C9: 0.2175254781 | D9: 0.06538265036 | E9: 0.1347763424 | F9: 0.04972056417 | G9: 0.1487834517 | H9: 0.04385403535 | I9: 0.1763970785 | J9: 0.1635603995
A10: 0.08999999994 | B10: 0.2024969369 | C10: 0.2808201085 | D10: 0.08147754882 | E10: 0.02247654691 | F10: 0.1396633307 | G10: 0.1508627451 | H10: -0.09629147902 | I10: 0.250573333 | J10: 0.1704178659
A11: 0.1000000006 | B11: 0.241225985 | C11: 0.3441152964 | D11: 0.09757251519 | E11: -0.08982410694 | F11: 0.2296068258 | G11: 0.1529420591 | H11: -0.236438059 | I11: 0.3247501287 | J11: 0.1772753407
A12: 0.1100000013 | B12: 0.2821681109 | C12: 0.4074103371 | D12: 0.1136675869 | E12: -0.2021248843 | F12: 0.3195502809 | G12: 0.1550214717 | H12: -0.3765846781 | I12: 0.3989269389 | J12: 0.1841329468
A13: 0.1200000019 | B13: 0.3244866874 | C13: 0.4707053724 | D13: 0.1297625083 | E13: -0.314425504 | F13: 0.4094939971 | G13: 0.1571006975 | H13: -0.5167311726 | I13: 0.4731037772 | J13: 0.1909903241
A14: 0.1300000025 | B14: 0.3677067832 | C14: 0.5340005205 | D14: 0.1458575853 | E14: -0.4267264124 | F14: 0.49943726 | G14: 0.1591801783 | H14: -0.6568777893 | I14: 0.5472806056 | J14: 0.197848052
A15: 0.05450666384 | B15: 0.1194704174 | C15: 0.05616452582 | D15: 0.02435103985 | E15: 0.4210691919 | F15: -0.1795760857 | G15: 0.1434827377 | H15: 0.4011353565 | I15: -0.0127050576 | J15: 0.1460783117 | K15: MVP
A16: 0.08195600882 | B16: 0.1739580708 | C16: 0.229950626 | D16: 0.06847762437 | E16: 0.1130107004 | F16: 0.06758767295 | G16: 0.1474727669 | H16: 0.01659483155 | I16: 0.1915713116 | J16: 0.1653344657 | K16: MVE
